Cogmind - Beta 13 @@@ ROGUE MODE // 2024.07.05 @ 23:26:26 Player: Pilow64 Result: Destroyed by G-34 Mercenary with Small Laser Performance ------------- Evolutions (1) 500 Regions Visited (2) 400 Robots Destroyed (32) 160 Value Destroyed (754) 754 Prototype IDs (0) 0 Alien Tech Used (0) 0 Bonus (0) 0 TOTAL SCORE: 1814 Bonus ------- None Cogmind --------- Core Integrity 0/400 Matter 267/300 Energy 275/275 System Corruption 0% Temperature Cool (6) Movement Rolling (125) Ox3 Location -9/Materials Parts ------- > --- POWER (2) -------- Ion Engine Light Ion Engine > --- PROPULSION (2) --- Wheel > --- UTILITY (3) ------ Improved Heat Sink Large Storage Unit > --- WEAPON (2) ------- Improved Light Cannon Datajack > --- INVENTORY (15) --- Medium Laser Beam Cannon Improved Light Cannon Improved Light Cannon Datajack Peak State ------------ > --- POWER ------------ Improved Ion Engine Improved Ion Engine > --- PROPULSION ------- Wheel Compact Wheel > --- UTILITY ---------- Improved Heat Sink Large Storage Unit Sensor Array > --- WEAPON ----------- Particle Gun Improved Light Cannon > --- INVENTORY -------- Wheel Medium Laser Beam Cannon Beam Cannon Improved Light Cannon Grenade Launcher Grenade Launcher Datajack Datajack [Rating: 16] Favorites ----------- Power Improved Ion Engine Engine Improved Ion Engine Propulsion Compact Wheel Wheel Compact Wheel Utility Large Storage Unit Device Improved Heat Sink Storage Large Storage Unit Protection Light Armor Plating Weapon Improved Light Cannon Energy Gun Particle Gun Energy Cannon Beam Cannon Ballistic Gun Assault Rifle Ballistic Cannon Improved Light Cannon Launcher Grenade Launcher Special Melee Weapon Datajack Build | -11 -10 -9 ------- Run | Yrd Mat Mat Slots Evolved 2 | . . 2 Power 1 | . . 1 Propulsion . | . . . Utility 1 | . . 1 Weapon . | . . . Parts Attached 32 | 6 13 13 Power 6 | 1 2 3 Engine 6 | 1 2 3 Core . | . . . Reactor . | . . . Propulsion 7 | 2 4 1 Treads . | . . . Leg . | . . . Wheel 7 | 2 4 1 Hover . | . . . Flight . | . . . Utility 6 | 1 2 3 Device 3 | . 1 2 Storage 2 | 1 1 . Processor . | . . . Hackware . | . . . Protection 1 | . . 1 Artifact . | . . . Weapon 13 | 2 5 6 Energy Gun 2 | 1 1 . Energy Cannon 2 | . . 2 Ballistic Gun 1 | 1 . . Ballistic Cannon 4 | . 3 1 Launcher 2 | . . 2 Special Weapon . | . . . Impact Weapon . | . . . Slashing Weapon . | . . . Piercing Weapon . | . . . Special Melee Weapon 2 | . 1 1 Unidentified Prototypes . | . . . Parts Lost 12 | . 3 9 Power 3 | . 1 2 Propulsion 2 | . . 2 Utility 1 | . . 1 Weapon 6 | . 2 4 Highest Loss Streak 9 | . 2 9 To Critical Strikes . | . . . Average Slot Usage (%) 87 | . 91 81 Engine 14 | . 12 16 Wheel 23 | . 28 17 Device 11 | . 7 15 Storage 12 | . 14 11 Energy Gun 8 | . 10 6 Ballistic Gun 1 | . 2 . Ballistic Cannon 12 | . 14 10 Naked Turns . | . . . Heaviest Build 45 | 14 35 45 Greatest Support 32 | 26 32 26 Greatest Overweight (x) 3 | . 1 3 Average Overweight (x) . | . . 1 Largest Inventory Capacity 15 | 8 15 15 Average Capacity 11 | 7 9 15 Most Carried 11 | 2 8 11 Average Carried 6 | . 5 8 Final Capacity 15 | 8 15 15 Final Carried 7 | 1 7 5 Class Distribution -------------------- 100% | Mutant Dominant Class ---------------- Mutant | -10/Materials Mutant | -9/Materials Resources | -11 -10 -9 ----------- Run | Yrd Mat Mat Matter Collected 943 | 181 377 385 Remotely . | . . . Salvage Created 724 | . 318 406 Parts 58 | . 32 26 Haulers Intercepted . | . . . Recyclers Shooed . | . . . Parts Field Recycled . | . . . Retrieved Matter . | . . . Parts Self-Destructed . | . . . Prevented . | . . . Kills | -11 -10 -9 ------- Run | Yrd Mat Mat Combat Hostiles Destroyed 24 | . 13 11 Guns 3 | . 3 . Cannons 19 | . 10 9 AOE 2 | . . 2 Classes Destroyed 7 | . 4 3 Worker 1 | . 1 . Recycler 2 | . . 2 Watcher 5 | . 3 2 Swarmer 9 | . 6 3 Grunt 11 | . 7 4 Duelist 2 | . . 2 Sentry 2 | . . 2 Best Kill Streak 10 | . 5 10 Combat Bots Only 8 | . 4 8 Max Kills in Single Turn 2 | . 1 2 Gunslinging . | . . . Exploded 1 | . . 1 Melee . | . . . Uniques/NPCs Destroyed . | . . . Combat | -11 -10 -9 -------- Run | Yrd Mat Mat Hostile Shots Fired 167 | . 80 87 Missed 38 | . 22 16 Damage Taken 1658 | . 564 1094 Core 492 | . 91 401 Absorbed by Shields . | . . . Regen/Repaired (Parts) 19 | . . 19 Core Remaining (%) 81 | 100 63 . Volleys Fired 100 | . 44 56 Largest 2 | . 2 2 Hottest 104 | . 104 104 Shots Fired 151 | . 75 76 Gun 18 | . 10 8 Cannon 131 | . 65 66 Launcher 2 | . . 2 Special . | . . . Kinetic 106 | . 65 41 Thermal 43 | . 10 33 Explosive 2 | . . 2 Electromagnetic . | . . . Robot Hit Streak 9 | . 5 9 Robot Miss Streak 6 | . 6 4 Penetration Max . | . . . Secondary Targets . | . . . Shots Hit Robots 75 | . 31 44 Core Hits 36 | . 17 19 Critical Kills . | . . . Critical Parts Destroyed . | . . . Critical Strikes . | . . . Melee Attacks . | . . . Impact . | . . . Slashing . | . . . Piercing . | . . . Sneak Attacks . | . . . Combat Hostiles . | . . . Follow-up Attacks . | . . . Damage Inflicted 1907 | . 749 1158 Guns 166 | . 117 49 Cannons 1513 | . 632 881 Explosions 228 | . . 228 Melee . | . . . Ramming . | . . . Kinetic 1302 | . 632 670 Thermal 377 | . 117 260 Explosive 228 | . . 228 Electromagnetic . | . . . Impact . | . . . Slashing . | . . . Piercing . | . . . Highest Corruption . | . . . Average Corruption . | . . . Corruption Purged . | . . . Corruption Blocked . | . . . Overload Shots . | . . . Overflow Damage 41 | . 17 24 Projectiles 26 | . 17 9 Explosions 15 | . . 15 Melee . | . . . Knockbacks 9 | . 5 4 Impact . | . . . Kinetic 9 | . 5 4 Secondary . | . . . Self-Inflicted Damage 38 | . . 38 Shots 2 | . . 2 Rammed . | . . . Targets Rammed . | . . . Kicked . | . . . Crushed . | . . . Highest Temperature 560 | . 332 560 Average Temperature 211 | . 103 315 Received Heat Transfer 345 | . 144 201 Effects 25 | . . 25 Shutdowns 3 | . . 3 Energy Bleed 4 | . . 4 Interference 1 | . . 1 Matter Decay 3 | . . 3 Short Circuit 4 | . . 4 Damage (minor) 3 | . . 3 Damage (major) 5 | . . 5 Damage (core) 2 | . . 2 Siege Activations . | . . . Robots Corrupted . | . . . Combat Hostiles . | . . . Parts Fried . | . . . Impact Corruptions . | . . . Robots Melted . | . . . Combat Hostiles . | . . . Parts Melted . | . . . Heat Transferred 814 | . 259 555 Parts Sabotaged . | . . . Parts Stolen . | . . . Parts Stripped . | . . . Power Chain Reactions . | . . . Alert | -11 -10 -9 ------- Run | Yrd Mat Mat Peak Influence 290 | . 249 290 Initial 30 | . . 30 Average 102 | . 100 120 Maximum Alert Level 1 | . 1 1 Low Security (%) 79 | 100 83 72 Level 1 20 | . 16 27 Level 2 . | . . . Level 3 . | . . . Level 4 . | . . . Level 5 . | . . . High Security . | . . . Max Security . | . . . Squads Dispatched 3 | . 1 2 Investigation 1 | . 1 . Extermination . | . . . Reinforcement 2 | . . 2 Assault . | . . . Garrison . | . . . Intercept . | . . . Searches Triggered . | . . . Construction Impeded . | . . . Haulers Reinforced . | . . . Active Scanning Responses . | . . . Cargo Convoy Interrupts . | . . . Stealth | -11 -10 -9 --------- Run | Yrd Mat Mat Distress Signals 2 | . 1 1 Communications Jammed . | . . . Distress Signals . | . . . Times Spotted 35 | . 18 17 Peak Tracking Total 6 | . 6 4 Tactical Retreats . | . . . Traps | -11 -10 -9 ------- Run | Yrd Mat Mat Traps Triggered . | . . . Indirectly . | . . . Trap Hack Attempts . | . . . Triggered . | . . . Disarmed . | . . . Reprogrammed . | . . . Reused . | . . . Traps Extracted . | . . . Installed . | . . . Triggered . | . . . Machines | -11 -10 -9 ---------- Run | Yrd Mat Mat Machines Disabled . | . . . Max in Single Turn . | . . . Machines Repaired . | . . . Machines Dismantled . | . . . Machines Sabotaged . | . . . Overloaded Fab Kills . | . . . Hacking | -11 -10 -9 --------- Run | Yrd Mat Mat Machines Accessed 4 | . 3 1 Terminals 3 | . 3 . Fabricators . | . . . Repair Stations 1 | . . 1 Recycling Units . | . . . Scanalyzers . | . . . Garrison Access . | . . . Total Hacks 19 | . 17 2 Successful 13 | . 11 2 Failed 6 | . 6 . Catastrophic 2 | . 2 . Database Lockouts . | . . . Manual . | . . . Terminals 17 | . 17 . Fabricators . | . . . Repair Stations 2 | . . 2 Recycling Units . | . . . Scanalyzers . | . . . Garrison Access . | . . . Terminal Hacks 11 | . 11 . Record 3 | . 3 . Robot Analysis 1 | . 1 . Alert Level 1 | . 1 . Unreport Threat 1 | . 1 . Dispatch Records 2 | . 2 . Investigation Status 1 | . 1 . Hauler Manifests 1 | . 1 . Zone Layout 1 | . 1 . Fabricator Hacks . | . . . Repair Station Hacks 2 | . . 2 Scan Component 1 | . . 1 Repair 1 | . . 1 Recycling Unit Hacks . | . . . Scanalyzer . | . . . Garrison Access Hacks . | . . . Unauthorized Hacks . | . . . Terminals . | . . . Fabricators . | . . . Repair Stations . | . . . Recycling Units . | . . . Scanalyzers . | . . . Garrison Access . | . . . Data Cores Recovered . | . . . Used . | . . . Hacking Detections 4 | . 3 1 Full Trace Events 2 | . 2 . Feedback Events . | . . . Feedback Blocked . | . . . Robot Schematics Acquired . | . . . Robots Built . | . . . Authchips . | . . . Time . | . . . Total Robot Build Rating . | . . . Part Schematics Acquired . | . . . Parts Built . | . . . Authchips . | . . . Time . | . . . Total Part Build Rating . | . . . Parts Repaired 1 | . . 1 Time 26 | . . 26 Parts Recycled . | . . . Recycled Matter . | . . . Retrieved Matter . | . . . Retrieved Components . | . . . Parts Scanalyzed . | . . . Part Schematics Acquired . | . . . Parts Damaged . | . . . Bothacking | -11 -10 -9 ------------ Run | Yrd Mat Mat Used RIF Installer . | . . . Robots Hacked . | . . . Non-combat . | . . . Combat . | . . . Robot Hacks Applied . | . . . Relay Couplers Released . | . . . Fabnet Peak Effective % . | . . . Robots Rewired . | . . . Allies Hacked . | . . . Hacks Repelled . | . . . Allies | -11 -10 -9 -------- Run | Yrd Mat Mat Total Allies . | . . . Largest Group . | . . . Highest-Rated Group . | . . . Highest-Rated Ally . | . . . Total Orders . | . . . Ally Attacks . | . . . Total Damage . | . . . Kills . | . . . Allies Corrupted . | . . . Allies Melted . | . . . Intel | -11 -10 -9 ------- Run | Yrd Mat Mat Robot Analysis Total 1 | . 1 . Derelict Logs Recovered . | . . . Drone Launches . | . . . Drone Recoveries . | . . . Exploration | -11 -10 -9 ------------- Run | Yrd Mat Mat Turns Passed 936 | 57 473 406 Spaces Moved 616 | 50 341 225 Core 1 | 1 . . Treads . | . . . Legs . | . . . Wheels 615 | 49 341 225 Hover . | . . . Flight . | . . . Fastest Speed 50 | 50 80 105 Average Speed 98 | 88 93 107 Slowest Speed 125 | 90 105 125 Overloaded Moves . | . . . Propulsion Burnouts . | . . . Robots Hopped . | . . . Cave-ins Triggered . | . . . Exploration Rate (%) 21 | 4 42 17 Regions Visited 2 Branch Regions . Pre-discovered Areas . | . . . Known Exits Taken . | . . . Unknown Exits Taken 2 | 1 1 . Scrap Searched . | . . . Spaces Dug . | . . . Terrain Destroyed 15 | . 3 12 Melee . | . . . Projectile 5 | . 3 2 AOE 10 | . . 10 Terrain Rammed . | . . . Walls Destroyed . | . . . Machines Disabled . | . . . Actions | -11 -10 -9 --------- Run | Yrd Mat Mat Total 793 | 62 419 312 Wait 9 | . . 9 Move 614 | 49 340 225 Hop . | . . . Pick Up 32 | 7 16 9 Fast Attach . | . . . Attach 20 | 6 4 10 Detach . | . . . Swap 12 | . 9 3 Drop 6 | . 6 . Fire 100 | . 44 56 Melee . | . . . Ram . | . . . Kick . | . . . Crush . | . . . Escape Stasis . | . . . Rewire . | . . . Trap . | . . . Miscellaneous . | . . . Route ------- -11/Scrapyard -10/Materials (discovered 2 exits: *Mat x2) -9/Materials (discovered 1 exit: [*Min]) History --------- Turn | Location | Event 20 | -11/Scrapyard | Discovered new exit (range 15) 58 | -11/Scrapyard | Entered Materials 341 | -10/Materials | Discovered new exit (range 5) 345 | -10/Materials | Build established: Mutant 412 | -10/Materials | Discovered new exit (range 18) 531 | -10/Materials | Entered another Materials area 531 | -9/Materials | Evolved 2 slots: Power x1, Utility x1 629 | -9/Materials | Discovered new exit (range 11) 721 | -9/Materials | Repaired Lgt. Armor Plating 811 | -9/Materials | Core integrity fell below 50% 830 | -9/Materials | Core integrity fell below 20% 861 | -9/Materials | Destroyed 8 combat bots 869 | -9/Materials | Lost 9 parts (2p2n1u4w) 937 | -9/Materials | Destroyed by G-34 Mercenary with Small Laser Last Messages --------------- 00893_ Acquired Ion Engine. 00893_ R-06 Scavenger collects Aluminum Leg. 00896_ R-06 Scavenger collects Core Shielding. 00896_ Acquired Lgt. Ion Engine. 00897_ R-06 Scavenger collects Heat Sink. 00902_ R-06 Scavenger knocked back. 00904_ W-16 Scout destroyed. 00905_ K-01 Serf collects debris. 00906_ Acquired 41 matter. 00909_ K-01 Serf collects debris. 00909_ Acquired 74 matter. 00910_ Acquired 3 matter. 00911_ Acquired 2 matter. 00912_ K-01 Serf collects debris. 00913_ Acquired 14 matter. 00914_ Acquired 50 matter. 00915_ K-01 Serf collects debris. 00916_ ALERT: Hostiles spotted, dispatching reinforcements to Terminal M005. 00919_ K-01 Serf collects debris. Map ----- +----------------------------------------------------+ | ?????????????????????????????? ??????????????????? | | ?????????????????????????????? ??????????????????? | | ???????? ????????????????????? ??????????????????? | | ???????? ???????????????????? ??????????????????? | | ???????? ???????????????????? ??????????????????? | | ???????##+##?????????????????? ??????????????????? | | ??????? ?????????????????? ??????????????????? | | ???????? #????????????????# #?????????????????? | | ???????? #????????????????# #?????????????????? | | ???????## #????????????????# ########??????????? | | ???????##% #????????????????# # #??????????? | | ????????T +????????????????# # """ #??????????? | | ##??????#% #????????????????# # "R" #??????????? | | ???## ##???????????????# # " " #??????????? | | "" ?# %#???????????????# # #?????###### | | "" # #???????????????# + #?????# | | "" + T ####????###?????# ############## | | # #############??## ######## # | | "" ??# #??# # | | ""?????## #??# < + | | ????????# #??# # | | ????????# #??# ####### # | | ????????#"%"####" "### #??# #?????####### | | ????????# " ##?#"R"### #??# ###########?# | | ????????##+##??#"""#?# k #### # #?###### | | ???????????????#####?# @ g% # #??????? | | ?????????????????????# # """ #??????? | | ?????????????????????# # """"" #??????? | | ?????????????????????######## + """"" #??????? | | ????????????????????????????# # """"" #??????? | | ????????????????????????????# # """ #??????? | | ????????????????????????????# # #??????? | | ?????????????????????######## ###########??????? | | ?????????????????????# # #????????????????? | | ?????????????????????# # #????????????????? | | ?????????????????????# """ + #????????????????? | | ?????????????????????# """ # ###########??????? | | ?????????????????????# """ # # #??????? | | ?????????????????????# # # #??????? | | ?????????????????????######## # """ #??????? | | ?????????????????#######T#### # """ #??????? | | ?????????????? # """ !/]#??????? | | ?????????????? + #??????? | | ?????????????? # / ]#??????? | | ???????????????############## # #??????? | | ????????????????????????????# ###########??????? | | ????????????????????????????# #????????????? | | ????????????????????????????# #????????????? | | ????????????????????????????# #????????????? | | ????????????????????????????#########????????????? | +----------------------------------------------------+ Best States ------------- Heat Dissipation 42 Energy Generation 19 Energy Capacity 430 Matter Stores 275 Matter Capacity 300 Sight Range 16 Robot Scan Range 14 Terrain Scan Density 10 Armor Coverage 150 Evasion (%) 44 Item Schematics ----------------- None Robot Schematics ------------------ None Fabricated ------------ Nothing Alien Tech Used ----------------- None Achievements -------------- None Challenges ------------ None Game ------ Seed ExplosiveLobotomyFlakker Manual? 0 Play Time 00:20:49 Cumulative 2.4 hours Start 2024.07.05 @ 23:05:20 End 2024.07.05 @ 23:26:26 Sessions 1 Manual Loads 0 Difficulty Rogue Special Mode None Game No. 4 Rogue 4 Adventurer 0 Explorer 0 Win Type - Total 0 Types 0/0/0/0/0/0/0/0/0 Lore% 1 Gallery% 7 Achievement% 6 Wizard Run 0 Options --------- Layout 1 ASCII 0 Keyboard 0 Movement Mouse Keybinds 0 Fullscreen 1 Font 24/Smallcaps Map View 50x35 Zoom Use 10% Tactical HUD 1 Map Filters NONE Filters NONE Steam 1 RUN: 60b33702-f5c7-4371-895d-74041116289c